[Event "44th Chess Olympiad Open 2022"]
[Site "Chennai"]
[Date "2022.07.31"]
[Round "3.38"]
[White "Kiik, Kalle"]
[Black "Christie, Joshua"]
[Result "1-0"]
[WhiteElo "2365"]
[BlackElo "2272"]
[Annotator "RC"]
[PlyCount "79"]
[EventDate "2022.??.??"]
[TimeControl "60"]

1. Nf3 {[%emt 0:00:05]} Nf6 {[%emt 0:00:11]} 2. g3 {[%emt 0:00:12]} d5 {
[%emt 0:00:07]} 3. Bg2 {[%emt 0:00:29]} g6 {[%emt 0:00:50]} 4. c4 {[%emt 0:00:
00]} d4 {[%emt 0:01:20]} 5. b4 {[%emt 0:01:09]} c5 {[%emt 0:01:16]} 6. a3 {
[%emt 0:03:39]} Bg7 {[%emt 0:00:47]} 7. d3 {[%emt 0:00:28]} O-O {[%emt 0:00:39]
} 8. O-O {[%emt 0:01:48]} Re8 {[%emt 0:02:56]} 9. Nbd2 {[%emt 0:01:59]} e5 {
[%emt 0:08:57]} 10. Ng5 {[%emt 0:04:30]} Qc7 {[%emt 0:02:22]} 11. Nge4 {
[%emt 0:04:57]} Nbd7 {[%emt 0:04:22]} 12. Qa4 {[%emt 0:12:08]} Re7 {[%emt 0:00:
00]} 13. Rb1 {[%emt 0:03:44]} h6 {[%emt 0:02:38]} 14. bxc5 {[%emt 0:11:47]}
Nxe4 {[%emt 0:05:16]} 15. Nxe4 {[%emt 0:01:06]} f5 {[%emt 0:03:31]} 16. c6 {
[%emt 0:11:56]} Nb6 {[%emt 0:16:05]} 17. Qb3 {[%emt 0:00:29]} Qxc6 {[%emt 0:00:
00]} 18. Nc3 {[%emt 0:14:50]} Qe8 {[%emt 0:11:12]} 19. Nb5 {[%emt 0:01:51]} Kh7
{[%emt 0:03:48]} 20. a4 {[%emt 0:00:53]} Qd8 {[%emt 0:04:54]} 21. Ba3 {[%emt 0:
00:00]} Nd7 {[%emt 0:00:57]} 22. a5 {[%emt 0:04:19]} Re6 {[%emt 0:00:30]} 23.
c5 {[%emt 0:02:51]} Ra6 {[%emt 0:01:43]} 24. Bb4 {[%emt 0:00:44]} Nb8 {[%emt 0:
00:00]} 25. Qf7 {[%emt 0:02:45]} Rf6 {[%emt 0:02:08]} 26. Qc7 {[%emt 0:00:53]}
Qg8 {[%emt 0:00:30]} 27. Bxb7 {[%emt 0:04:55]} Bxb7 {[%emt 0:00:23]} 28. Qxb7 {
[%emt 0:00:03]} Nc6 {[%emt 0:00:02]} 29. Nd6 {[%emt 0:00:12]} Qd5 {[%emt 0:00:
00]} 30. Qxa8 {[%emt 0:00:52]} Rf8 {[%emt 0:00:01]} 31. Qb7 {[%emt 0:00:34]} e4
{[%emt 0:00:20]} 32. Ba3 {[%emt 0:00:55]} exd3 {[%emt 0:01:23]} 33. exd3 {
[%emt 0:00:01]} Rd8 {[%emt 0:00:34]} 34. Qb3 {[%emt 0:00:27]} Qf3 {[%emt 0:00:
00]} 35. Qd1 {[%emt 0:00:14]} Qd5 {[%emt 0:00:01]} 36. f4 {[%emt 0:00:15]} Ne7
{[%emt 0:01:20]} 37. Qb3 {[%emt 0:01:03]} Qc6 {[%emt 0:00:32]} 38. Qb7 {
[%emt 0:00:44]} Qa4 {[%emt 0:00:28]} 39. Qxe7 {[%emt 0:00:27]} Rd7 {[%emt 0:00:
00]} 40. Qe6 {[%emt 0:01:07]} 1-0

[Event "44th Chess Olympiad Open 2022"]
[Site "Chennai"]
[Date "2022.07.31"]
[Round "3.38"]
[White "Smith, Shreyas"]
[Black "Volodin, Aleksandr"]
[Result "0-1"]
[WhiteElo "2147"]
[BlackElo "2454"]
[Annotator "RC"]
[PlyCount "156"]
[EventDate "2022.??.??"]
[TimeControl "60"]

1. e4 {[%emt 0:00:04]} c5 {[%emt 0:00:04]} 2. Nf3 {[%emt 0:00:09]} Nc6 {
[%emt 0:00:05]} 3. d4 {[%emt 0:00:08]} cxd4 {[%emt 0:00:06]} 4. Nxd4 {[%emt 0:
00:00]} e6 {[%emt 0:00:48]} 5. Nc3 {[%emt 0:00:08]} Qc7 {[%emt 0:00:11]} 6. Be3
{[%emt 0:00:37]} Nf6 {[%emt 0:00:09]} 7. f4 {[%emt 0:00:12]} d6 {[%emt 0:01:12]
} 8. Qf3 {[%emt 0:00:10]} a6 {[%emt 0:04:03]} 9. O-O-O {[%emt 0:00:17]} h5 {
[%emt 0:08:01]} 10. Be2 {[%emt 0:15:08]} Bd7 {[%emt 0:05:44]} 11. Nb3 {[%emt 0:
00:00]} Rc8 {[%emt 0:00:47]} 12. Kb1 {[%emt 0:02:04]} b5 {[%emt 0:00:28]} 13.
a3 {[%emt 0:00:12]} b4 {[%emt 0:04:56]} 14. axb4 {[%emt 0:00:07]} Nxb4 {
[%emt 0:00:05]} 15. Rd2 {[%emt 0:07:54]} Bc6 {[%emt 0:07:16]} 16. Bd3 {[%emt 0:
00:00]} Be7 {[%emt 0:05:26]} 17. Re1 {[%emt 0:09:08]} Rb8 {[%emt 0:01:19]} 18.
Qf1 {[%emt 0:04:58]} Nxd3 {[%emt 0:07:53]} 19. Qxd3 {[%emt 0:00:42]} O-O {
[%emt 0:00:39]} 20. Bd4 {[%emt 0:04:43]} e5 {[%emt 0:07:09]} 21. fxe5 {[%emt 0:
00:00]} dxe5 {[%emt 0:00:01]} 22. Qg3 {[%emt 0:00:20]} Bd6 {[%emt 0:00:28]} 23.
Ba7 {[%emt 0:01:55]} Rbd8 {[%emt 0:20:41]} 24. Rxd6 {[%emt 0:02:14]} Rxd6 {
[%emt 0:00:36]} 25. Bc5 {[%emt 0:00:07]} Rb8 {[%emt 0:02:18]} 26. Bxd6 {
[%emt 0:02:18]} Qxd6 {[%emt 0:00:01]} 27. Rd1 {[%emt 0:00:38]} Qe6 {[%emt 0:00:
00]} 28. Qd3 {[%emt 0:11:23]} Qc8 {[%emt 0:05:47]} 29. Nd5 {[%emt 0:05:30]}
Nxd5 {[%emt 0:00:30]} 30. exd5 {[%emt 0:00:14]} Bd7 {[%emt 0:00:09]} 31. Qe3 {
[%emt 0:03:27]} Bf5 {[%emt 0:01:22]} 32. Rd2 {[%emt 0:02:57]} Qb7 {[%emt 0:00:
00]} 33. Kc1 {[%emt 0:00:39]} f6 {[%emt 0:01:08]} 34. d6 {[%emt 0:01:17]} Be6 {
[%emt 0:02:23]} 35. Qc3 {[%emt 0:13:01]} Bxb3 {[%emt 0:02:18]} 36. cxb3 {
[%emt 0:00:29]} Rd8 {[%emt 0:00:39]} 37. Qc4+ {[%emt 0:01:59]} Kf8 {[%emt 0:00:
00]} 38. Kb1 {[%emt 0:00:15]} Qb5 {[%emt 0:01:19]} 39. Rd5 {[%emt 0:00:45]}
Qxc4 {[%emt 0:03:16]} 40. bxc4 {[%emt 0:00:06]} Ke8 {[%emt 0:00:13]} 41. c5 {
[%emt 0:33:19]} Kd7 {[%emt 0:30:06]} 42. Rd3 {[%emt 0:00:25]} Kc6 {[%emt 0:00:
00]} 43. Rc3 {[%emt 0:00:08]} h4 {[%emt 0:00:00]} 44. Kc2 {[%emt 0:00:00]} a5 {
[%emt 0:00:00]} 45. b3 {[%emt 0:00:00]} f5 {[%emt 0:00:00]} 46. Kd3 {[%emt 0:
00:00]} Rb8 {[%emt 0:00:00]} 47. Ke2 {[%emt 0:00:00]} h3 {[%emt 0:00:00]} 48.
g4 {[%emt 0:00:00]} g6 {[%emt 0:00:00]} 49. Kf3 {[%emt 0:00:00]} Rf8 {[%emt 0:
00:00]} 50. Kg3 {[%emt 0:00:00]} Rh8 {[%emt 0:00:00]} 51. Rc2 {[%emt 0:00:00]}
Kd5 {[%emt 0:00:00]} 52. d7 {[%emt 0:00:00]} f4+ {[%emt 0:00:00]} 53. Kf3 {
[%emt 0:00:00]} Kc6 {[%emt 0:00:00]} 54. Ke4 {[%emt 0:00:00]} Kxd7 {[%emt 0:00:
00]} 55. Kxe5 {[%emt 0:00:00]} Rf8 {[%emt 0:01:18]} 56. Kd5 {[%emt 0:00:58]}
Kc7 {[%emt 0:01:16]} 57. Rf2 {[%emt 0:03:35]} f3 {[%emt 0:02:21]} 58. c6 {
[%emt 0:01:34]} g5 {[%emt 0:03:10]} 59. Kc5 {[%emt 0:00:23]} Rf4 {[%emt 0:00:
00]} 60. Kd5 {[%emt 0:00:45]} Rf6 {[%emt 0:02:59]} 61. Ke5 {[%emt 0:00:23]} Rf8
{[%emt 0:00:12]} 62. Kd5 {[%emt 0:00:23]} Rf7 {[%emt 0:01:05]} 63. Kc5 {
[%emt 0:00:27]} Rf6 {[%emt 0:00:34]} 64. Kb5 {[%emt 0:00:57]} Rf8 {[%emt 0:00:
00]} 65. Kc5 {[%emt 0:00:07]} Rf4 {[%emt 0:00:24]} 66. Kd5 {[%emt 0:00:15]} Kb6
{[%emt 0:00:33]} 67. Rc2 {[%emt 0:02:24]} f2 {[%emt 0:00:31]} 68. c7 {[%emt 0:
00:00]} f1=Q {[%emt 0:00:27]} 69. Rc6+ {[%emt 0:01:32]} Kb5 {[%emt 0:00:29]}
70. Rc5+ {[%emt 0:00:11]} Kb4 {[%emt 0:00:10]} 71. c8=Q {[%emt 0:00:21]} Qf3+ {
[%emt 0:01:03]} 72. Kd6 {[%emt 0:01:15]} Rf6+ {[%emt 0:00:34]} 73. Ke7 {
[%emt 0:00:34]} Rf7+ {[%emt 0:00:01]} 74. Kd6 {[%emt 0:00:23]} Qf6+ {[%emt 0:
00:00]} 75. Kd5 {[%emt 0:00:01]} Qf3+ {[%emt 0:00:19]} 76. Kd6 {[%emt 0:00:15]}
Qf4+ {[%emt 0:00:32]} 77. Ke6 {[%emt 0:00:36]} Rf6+ {[%emt 0:00:04]} 78. Kd7 {
[%emt 0:01:08]} Qd6+ {[%emt 0:00:06]} 0-1

[Event "44th Chess Olympiad Open 2022"]
[Site "Chennai"]
[Date "2022.07.31"]
[Round "3.38"]
[White "Shaw, Jaden"]
[Black "Kanep, Meelis"]
[Result "1/2-1/2"]
[WhiteElo "1930"]
[BlackElo "2417"]
[Annotator "RC"]
[PlyCount "78"]
[EventDate "2022.??.??"]
[TimeControl "60"]

1. e4 {[%emt 0:00:22]} e5 {[%emt 0:01:50]} 2. Nf3 {[%emt 0:00:08]} Nc6 {
[%emt 0:00:06]} 3. d4 {[%emt 0:02:08]} exd4 {[%emt 0:00:12]} 4. Nxd4 {[%emt 0:
00:00]} Nf6 {[%emt 0:00:39]} 5. Nxc6 {[%emt 0:01:28]} bxc6 {[%emt 0:00:08]} 6.
Bd3 {[%emt 0:00:13]} d5 {[%emt 0:05:07]} 7. e5 {[%emt 0:03:28]} Ng4 {[%emt 0:
00:00]} 8. O-O {[%emt 0:00:50]} Bc5 {[%emt 0:00:43]} 9. Bf4 {[%emt 0:03:50]} g5
{[%emt 0:02:31]} 10. Bd2 {[%emt 0:03:19]} Nxe5 {[%emt 0:08:49]} 11. Bc3 {
[%emt 0:07:28]} d4 {[%emt 0:05:02]} 12. Re1 {[%emt 0:00:59]} dxc3 {[%emt 0:00:
00]} 13. Rxe5+ {[%emt 0:00:31]} Kf8 {[%emt 0:00:50]} 14. Nxc3 {[%emt 0:04:01]}
Bxf2+ {[%emt 0:01:54]} 15. Kh1 {[%emt 0:00:25]} Bd4 {[%emt 0:05:24]} 16. Re1 {
[%emt 0:05:36]} h5 {[%emt 0:16:34]} 17. Be4 {[%emt 0:07:04]} Bg4 {[%emt 0:00:
00]} 18. Qd3 {[%emt 0:01:24]} Bf2 {[%emt 0:09:43]} 19. Qc4 {[%emt 0:02:00]}
Bxe1 {[%emt 0:01:31]} 20. Rxe1 {[%emt 0:00:01]} Be6 {[%emt 0:08:20]} 21. Qc5+ {
[%emt 0:04:21]} Qe7 {[%emt 0:01:24]} 22. Qd4 {[%emt 0:01:22]} Rh6 {[%emt 0:00:
00]} 23. Bxc6 {[%emt 0:01:24]} Rd8 {[%emt 0:00:24]} 24. Qxa7 {[%emt 0:01:15]}
Qd6 {[%emt 0:01:32]} 25. Be4 {[%emt 0:01:26]} Qb6 {[%emt 0:01:55]} 26. Qa3+ {
[%emt 0:01:21]} c5 {[%emt 0:00:44]} 27. Bd3 {[%emt 0:01:51]} Qb4 {[%emt 0:00:
00]} 28. Qa7 {[%emt 0:01:07]} c4 {[%emt 0:00:28]} 29. a3 {[%emt 0:06:11]} Qd6 {
[%emt 0:00:03]} 30. Nb5 {[%emt 0:01:49]} Qc6 {[%emt 0:01:59]} 31. Qa5 {[%emt 0:
00:00]} Rb8 {[%emt 0:01:22]} 32. Nd4 {[%emt 0:04:34]} Qd5 {[%emt 0:01:02]} 33.
Qc7 {[%emt 0:01:51]} Re8 {[%emt 0:02:01]} 34. Nxe6+ {[%emt 0:03:45]} Rhxe6 {
[%emt 0:00:01]} 35. Rf1 {[%emt 0:00:58]} Rc6 {[%emt 0:02:23]} 36. Qg3 {[%emt 0:
00:00]} cxd3 {[%emt 0:00:07]} 37. cxd3 {[%emt 0:00:19]} Rc2 {[%emt 0:00:36]}
38. b4 {[%emt 0:01:21]} Re3 {[%emt 0:01:09]} 39. Qb8+ {[%emt 0:01:19]} Kg7 {
[%emt 0:00:11]} 1/2-1/2

[Event "44th Chess Olympiad Open 2022"]
[Site "Chennai"]
[Date "2022.07.31"]
[Round "3.39"]
[White "Fluvia Poyatos, Jordi"]
[Black "Ajak Mach Duany"]
[Result "1/2-1/2"]
[WhiteElo "2451"]
[BlackElo "2029"]
[Annotator "RC"]
[PlyCount "83"]
[EventDate "2022.??.??"]
[TimeControl "60"]

1. e4 {[%emt 0:00:03]} c5 {[%emt 0:00:19]} 2. Nf3 {[%emt 0:00:52]} d6 {[%emt 0:
00:00]} 3. Bb5+ {[%emt 0:00:33]} Nd7 {[%emt 0:00:14]} 4. O-O {[%emt 0:00:29]}
a6 {[%emt 0:00:24]} 5. Bxd7+ {[%emt 0:00:52]} Bxd7 {[%emt 0:00:09]} 6. Qe2 {
[%emt 0:00:35]} e6 {[%emt 0:05:24]} 7. Rd1 {[%emt 0:01:07]} Ne7 {[%emt 0:16:05]
} 8. c3 {[%emt 0:03:17]} Ng6 {[%emt 0:01:48]} 9. d4 {[%emt 0:01:36]} cxd4 {
[%emt 0:01:27]} 10. cxd4 {[%emt 0:00:12]} Be7 {[%emt 0:00:13]} 11. Nc3 {
[%emt 0:00:53]} O-O {[%emt 0:01:03]} 12. a4 {[%emt 0:03:34]} b5 {[%emt 0:08:20]
} 13. axb5 {[%emt 0:08:57]} axb5 {[%emt 0:00:16]} 14. Rxa8 {[%emt 0:00:20]}
Qxa8 {[%emt 0:00:05]} 15. d5 {[%emt 0:00:46]} b4 {[%emt 0:01:26]} 16. dxe6 {
[%emt 0:00:56]} fxe6 {[%emt 0:00:15]} 17. Nb5 {[%emt 0:05:27]} Rc8 {[%emt 0:00:
00]} 18. Nbd4 {[%emt 0:03:39]} Qa5 {[%emt 0:11:54]} 19. g3 {[%emt 0:04:37]} Rf8
{[%emt 0:03:19]} 20. h4 {[%emt 0:02:47]} Qh5 {[%emt 0:03:46]} 21. Ng5 {[%emt 0:
00:00]} Qxe2 {[%emt 0:00:18]} 22. Nxe2 {[%emt 0:00:03]} h6 {[%emt 0:01:00]} 23.
Nh3 {[%emt 0:00:11]} e5 {[%emt 0:00:28]} 24. Kg2 {[%emt 0:00:55]} Bg4 {[%emt 0:
00:00]} 25. Nhg1 {[%emt 0:01:51]} Rc8 {[%emt 0:01:00]} 26. Rd5 {[%emt 0:03:57]}
Rc2 {[%emt 0:02:09]} 27. Rd2 {[%emt 0:01:19]} Rc8 {[%emt 0:01:04]} 28. Rd5 {
[%emt 0:00:37]} Nf8 {[%emt 0:02:41]} 29. Rb5 {[%emt 0:01:44]} Rc2 {[%emt 0:00:
00]} 30. f3 {[%emt 0:02:01]} Bd7 {[%emt 0:01:18]} 31. Rb7 {[%emt 0:04:01]} d5 {
[%emt 0:01:39]} 32. exd5 {[%emt 0:01:11]} Bc5 {[%emt 0:00:23]} 33. Rc7 {
[%emt 0:00:47]} Bb5 {[%emt 0:00:45]} 34. Be3 {[%emt 0:02:18]} Rxe2+ {[%emt 0:
00:00]} 35. Nxe2 {[%emt 0:00:07]} Bxe3 {[%emt 0:00:05]} 36. Ng1 {[%emt 0:02:26]
} Nd7 {[%emt 0:02:10]} 37. Nh3 {[%emt 0:02:44]} Kf8 {[%emt 0:00:57]} 38. Nf2 {
[%emt 0:00:38]} Bb6 {[%emt 0:06:11]} 39. Rc8+ {[%emt 0:02:20]} Ke7 {[%emt 0:00:
00]} 40. Ne4 {[%emt 0:00:31]} Ba4 {[%emt 0:05:07]} 41. Rc4 {[%emt 0:35:00]} Ba5
{[%emt 0:05:26]} 42. Rc1 {[%emt 0:00:00]} 1/2-1/2

[Event "44th Chess Olympiad Open 2022"]
[Site "Chennai"]
[Date "2022.07.31"]
[Round "3.39"]
[White "Ribera Veganzones, Josep Maria"]
[Black "Peter Majur Manyang"]
[Result "0-1"]
[WhiteElo "2228"]
[BlackElo "2095"]
[Annotator "RC"]
[PlyCount "62"]
[EventDate "2022.??.??"]
[TimeControl "60"]

1. e4 {[%emt 0:00:10]} c5 {[%emt 0:00:11]} 2. Nf3 {[%emt 0:00:29]} Nc6 {
[%emt 0:00:29]} 3. Bb5 {[%emt 0:01:09]} a6 {[%emt 0:01:31]} 4. Bxc6 {[%emt 0:
00:00]} dxc6 {[%emt 0:00:11]} 5. d3 {[%emt 0:00:47]} Bg4 {[%emt 0:01:58]} 6. h3
{[%emt 0:02:28]} Bh5 {[%emt 0:05:05]} 7. Be3 {[%emt 0:05:23]} e6 {[%emt 0:00:
00]} 8. Nbd2 {[%emt 0:03:20]} Nf6 {[%emt 0:03:08]} 9. O-O {[%emt 0:03:37]} Qc7
{[%emt 0:00:08]} 10. a3 {[%emt 0:01:20]} O-O-O {[%emt 0:00:04]} 11. Rb1 {
[%emt 0:01:35]} Rg8 {[%emt 0:03:44]} 12. Qc1 {[%emt 0:10:30]} Nd7 {[%emt 0:00:
00]} 13. b4 {[%emt 0:02:41]} cxb4 {[%emt 0:00:05]} 14. axb4 {[%emt 0:01:12]} g5
{[%emt 0:00:27]} 15. g4 {[%emt 0:11:30]} f5 {[%emt 0:02:55]} 16. Nd4 {[%emt 0:
00:00]} fxg4 {[%emt 0:03:23]} 17. Nc4 {[%emt 0:02:35]} Ne5 {[%emt 0:05:16]} 18.
Nxe5 {[%emt 0:04:55]} Qxe5 {[%emt 0:00:05]} 19. hxg4 {[%emt 0:05:35]} Bxg4 {
[%emt 0:02:51]} 20. Kg2 {[%emt 0:00:52]} Rxd4 {[%emt 0:06:26]} 21. Bxd4 {
[%emt 0:02:09]} Qxd4 {[%emt 0:00:03]} 22. Rh1 {[%emt 0:01:17]} Bd6 {[%emt 0:00:
00]} 23. Qb2 {[%emt 0:01:46]} Bf3+ {[%emt 0:01:02]} 24. Kxf3 {[%emt 0:01:10]}
Rf8+ {[%emt 0:00:16]} 25. Kg4 {[%emt 0:00:58]} Qxf2 {[%emt 0:00:07]} 26. Rbg1 {
[%emt 0:07:35]} Qf4+ {[%emt 0:01:17]} 27. Kh5 {[%emt 0:00:15]} Qf7+ {[%emt 0:
00:00]} 28. Kxg5 {[%emt 0:01:20]} Qg6+ {[%emt 0:01:00]} 29. Kh4 {[%emt 0:00:14]
} Rf4+ {[%emt 0:00:16]} 30. Kh3 {[%emt 0:00:18]} Rf3+ {[%emt 0:00:27]} 31. Kh4
{[%emt 0:00:22]} Be7+ {[%emt 0:00:12]} 0-1

[Event "44th Chess Olympiad Open 2022"]
[Site "Chennai"]
[Date "2022.07.31"]
[Round "3.39"]
[White "Gong Thon Gong"]
[Black "De La Riva Aguado, Oscar"]
[Result "0-1"]
[WhiteElo "2176"]
[BlackElo "2424"]
[Annotator "RC"]
[PlyCount "86"]
[EventDate "2022.??.??"]
[TimeControl "60"]

1. d4 {[%emt 0:00:06]} f5 {[%emt 0:00:31]} 2. Nf3 {[%emt 0:00:13]} Nf6 {
[%emt 0:00:10]} 3. g3 {[%emt 0:00:16]} g6 {[%emt 0:00:33]} 4. c4 {[%emt 0:00:
00]} Bg7 {[%emt 0:00:06]} 5. Bg2 {[%emt 0:00:07]} O-O {[%emt 0:00:07]} 6. O-O {
[%emt 0:00:08]} d6 {[%emt 0:00:06]} 7. Nc3 {[%emt 0:00:30]} c6 {[%emt 0:01:08]}
8. Re1 {[%emt 0:00:12]} Na6 {[%emt 0:01:31]} 9. a3 {[%emt 0:03:54]} Ne4 {
[%emt 0:06:39]} 10. Qd3 {[%emt 0:01:07]} Nxc3 {[%emt 0:02:31]} 11. Qxc3 {
[%emt 0:00:28]} Nc5 {[%emt 0:05:29]} 12. b4 {[%emt 0:01:01]} Ne4 {[%emt 0:00:
00]} 13. Qb3 {[%emt 0:00:31]} Be6 {[%emt 0:00:48]} 14. Qd3 {[%emt 0:05:31]} a5
{[%emt 0:09:03]} 15. Be3 {[%emt 0:00:25]} Bf7 {[%emt 0:02:08]} 16. Ng5 {
[%emt 0:03:30]} Nxg5 {[%emt 0:03:08]} 17. Bxg5 {[%emt 0:00:02]} h6 {[%emt 0:00:
00]} 18. Bd2 {[%emt 0:00:31]} e5 {[%emt 0:02:44]} 19. e4 {[%emt 0:00:26]} axb4
{[%emt 0:03:22]} 20. axb4 {[%emt 0:03:51]} Rxa1 {[%emt 0:03:10]} 21. Rxa1 {
[%emt 0:00:03]} exd4 {[%emt 0:10:45]} 22. exf5 {[%emt 0:00:10]} gxf5 {[%emt 0:
00:00]} 23. b5 {[%emt 0:01:30]} Qb6 {[%emt 0:10:25]} 24. Qxf5 {[%emt 0:02:30]}
Bxc4 {[%emt 0:06:55]} 25. Qg4 {[%emt 0:03:18]} Qxb5 {[%emt 0:09:37]} 26. Be4 {
[%emt 0:11:31]} Qb2 {[%emt 0:00:31]} 27. Rd1 {[%emt 0:00:24]} Rf6 {[%emt 0:00:
00]} 28. Qc8+ {[%emt 0:00:20]} Rf8 {[%emt 0:00:09]} 29. Qg4 {[%emt 0:00:03]}
Rf6 {[%emt 0:04:08]} 30. Qc8+ {[%emt 0:00:05]} Bf8 {[%emt 0:01:36]} 31. Qg4+ {
[%emt 0:01:22]} Bg7 {[%emt 0:00:35]} 32. Qc8+ {[%emt 0:00:19]} Bf8 {[%emt 0:00:
00]} 33. Qg4+ {[%emt 0:00:04]} Kh8 {[%emt 0:00:04]} 34. Bb1 {[%emt 0:12:14]}
Bg7 {[%emt 0:02:08]} 35. h4 {[%emt 0:01:32]} Be6 {[%emt 0:00:48]} 36. Qh5 {
[%emt 0:00:54]} Bf7 {[%emt 0:02:27]} 37. Qg4 {[%emt 0:00:13]} c5 {[%emt 0:00:
00]} 38. Qc8+ {[%emt 0:02:22]} Bg8 {[%emt 0:00:05]} 39. Bf4 {[%emt 0:01:03]}
Qe2 {[%emt 0:00:35]} 40. Rf1 {[%emt 0:01:33]} Qf3 {[%emt 0:01:35]} 41. Re1 {
[%emt 0:30:42]} Rf8 {[%emt 0:30:09]} 42. Re8 {[%emt 0:00:27]} Rxe8 {[%emt 0:00:
00]} 43. Qxe8 {[%emt 0:00:02]} Qd1+ {[%emt 0:00:06]} 0-1

[Event "44th Chess Olympiad Open 2022"]
[Site "Chennai"]
[Date "2022.07.31"]
[Round "3.39"]
[White "Rehan, Deng Cypriano"]
[Black "Henderson de La Fuente, Lance"]
[Result "0-1"]
[WhiteElo "2105"]
[BlackElo "2490"]
[Annotator "RC"]
[PlyCount "97"]
[EventDate "2022.??.??"]
[TimeControl "60"]

1. e4 {[%emt 0:00:05]} c6 {[%emt 0:00:28]} 2. d4 {[%emt 0:01:06]} d5 {[%emt 0:
00:00]} 3. Nc3 {[%emt 0:00:09]} dxe4 {[%emt 0:00:20]} 4. Nxe4 {[%emt 0:00:12]}
Bf5 {[%emt 0:00:28]} 5. Nc5 {[%emt 0:01:10]} Qc7 {[%emt 0:02:39]} 6. Nf3 {
[%emt 0:13:45]} h6 {[%emt 0:04:42]} 7. Ne5 {[%emt 0:03:52]} e6 {[%emt 0:03:05]}
8. Bf4 {[%emt 0:06:55]} Bd6 {[%emt 0:04:05]} 9. Bd3 {[%emt 0:13:29]} Bxd3 {
[%emt 0:05:43]} 10. Qxd3 {[%emt 0:00:56]} Nf6 {[%emt 0:01:03]} 11. O-O-O {
[%emt 0:06:23]} b6 {[%emt 0:10:04]} 12. Ne4 {[%emt 0:07:52]} Nxe4 {[%emt 0:00:
00]} 13. Qxe4 {[%emt 0:00:06]} Nd7 {[%emt 0:02:00]} 14. Bg3 {[%emt 0:01:23]}
Nxe5 {[%emt 0:02:23]} 15. Bxe5 {[%emt 0:02:38]} O-O {[%emt 0:00:51]} 16. Rd3 {
[%emt 0:03:26]} Bxe5 {[%emt 0:10:53]} 17. dxe5 {[%emt 0:03:16]} Rad8 {[%emt 0:
00:00]} 18. Rhd1 {[%emt 0:03:00]} Rd5 {[%emt 0:02:33]} 19. Rxd5 {[%emt 0:00:58]
} cxd5 {[%emt 0:00:30]} 20. Qe2 {[%emt 0:02:17]} Rc8 {[%emt 0:02:08]} 21. c3 {
[%emt 0:02:49]} Qc4 {[%emt 0:00:39]} 22. Qxc4 {[%emt 0:00:12]} Rxc4 {[%emt 0:
00:00]} 23. f3 {[%emt 0:00:35]} Kh7 {[%emt 0:03:00]} 24. Kd2 {[%emt 0:02:31]}
Ra4 {[%emt 0:03:17]} 25. a3 {[%emt 0:00:37]} Kg6 {[%emt 0:05:46]} 26. Ke3 {
[%emt 0:05:14]} Kf5 {[%emt 0:04:44]} 27. Rd4 {[%emt 0:00:09]} Ra5 {[%emt 0:00:
00]} 28. Rf4+ {[%emt 0:00:50]} Kg6 {[%emt 0:01:07]} 29. h4 {[%emt 0:00:34]} f5
{[%emt 0:00:45]} 30. exf6 {[%emt 0:03:57]} gxf6 {[%emt 0:02:40]} 31. Rg4+ {
[%emt 0:03:12]} Kf7 {[%emt 0:00:21]} 32. h5 {[%emt 0:00:39]} Rc5 {[%emt 0:00:
00]} 33. Kd3 {[%emt 0:03:13]} Rc8 {[%emt 0:00:50]} 34. Rg6 {[%emt 0:01:06]} Rg8
{[%emt 0:00:48]} 35. Rxg8 {[%emt 0:00:54]} Kxg8 {[%emt 0:00:09]} 36. c4 {
[%emt 0:01:23]} dxc4+ {[%emt 0:00:15]} 37. Kxc4 {[%emt 0:00:05]} a6 {[%emt 0:
00:00]} 38. a4 {[%emt 0:04:13]} Kf7 {[%emt 0:03:33]} 39. g4 {[%emt 0:02:29]}
Ke7 {[%emt 0:05:49]} 40. a5 {[%emt 0:01:16]} b5+ {[%emt 0:08:55]} 41. Kc5 {
[%emt 0:30:39]} Kd7 {[%emt 0:31:41]} 42. Kb6 {[%emt 0:00:00]} b4 {[%emt 0:00:
00]} 43. Kxa6 {[%emt 0:00:00]} Kc6 {[%emt 0:00:00]} 44. b3 {[%emt 0:00:00]} e5
{[%emt 0:00:00]} 45. Ka7 {[%emt 0:00:00]} Kc7 {[%emt 0:00:00]} 46. a6 {[%emt 0:
00:00]} Kc8 {[%emt 0:00:00]} 47. Kb6 {[%emt 0:00:00]} Kb8 {[%emt 0:00:00]} 48.
Kb5 {[%emt 0:00:00]} Kc7 {[%emt 0:00:00]} 49. Kc5 {[%emt 0:00:00]} 0-1

[Event "44th Chess Olympiad Open 2022"]
[Site "Chennai"]
[Date "2022.07.31"]
[Round "3.40"]
[White "Baburin, Alexander"]
[Black "Jimma, Desalegn Fekadu"]
[Result "1-0"]
[WhiteElo "2400"]
[BlackElo "2112"]
[Annotator "RC"]
[PlyCount "79"]
[EventDate "2022.??.??"]
[TimeControl "60"]

1. d4 {[%emt 0:00:05]} d5 {[%emt 0:00:14]} 2. c4 {[%emt 0:00:07]} e6 {[%emt 0:
00:00]} 3. Nf3 {[%emt 0:00:09]} c6 {[%emt 0:00:34]} 4. Qc2 {[%emt 0:00:31]} Nf6
{[%emt 0:00:19]} 5. g3 {[%emt 0:01:08]} Bd6 {[%emt 0:07:41]} 6. Nbd2 {[%emt 0:
00:00]} Nbd7 {[%emt 0:00:24]} 7. Bg2 {[%emt 0:00:07]} O-O {[%emt 0:00:16]} 8.
O-O {[%emt 0:00:08]} Re8 {[%emt 0:11:57]} 9. b3 {[%emt 0:01:34]} e5 {[%emt 0:
00:00]} 10. cxd5 {[%emt 0:00:33]} cxd5 {[%emt 0:10:05]} 11. dxe5 {[%emt 0:00:
00]} Nxe5 {[%emt 0:00:04]} 12. Bb2 {[%emt 0:00:25]} Bg4 {[%emt 0:02:22]} 13.
Bxe5 {[%emt 0:05:10]} Bxe5 {[%emt 0:00:14]} 14. Nxe5 {[%emt 0:00:06]} Rxe5 {
[%emt 0:00:09]} 15. e3 {[%emt 0:00:29]} Qd7 {[%emt 0:03:04]} 16. Rac1 {[%emt 0:
00:00]} Ree8 {[%emt 0:13:34]} 17. Nf3 {[%emt 0:12:17]} Rac8 {[%emt 0:02:10]}
18. Qb2 {[%emt 0:00:46]} Bh3 {[%emt 0:03:54]} 19. Rxc8 {[%emt 0:01:17]} Rxc8 {
[%emt 0:00:14]} 20. Rc1 {[%emt 0:03:29]} Rxc1+ {[%emt 0:01:09]} 21. Qxc1 {
[%emt 0:00:08]} Bxg2 {[%emt 0:00:09]} 22. Kxg2 {[%emt 0:00:05]} Ne4 {[%emt 0:
00:00]} 23. Nd4 {[%emt 0:05:16]} h5 {[%emt 0:01:32]} 24. h4 {[%emt 0:02:33]} a6
{[%emt 0:04:12]} 25. Qc2 {[%emt 0:04:00]} g6 {[%emt 0:01:04]} 26. a4 {[%emt 0:
00:00]} Kg7 {[%emt 0:00:34]} 27. Ne2 {[%emt 0:14:11]} Qc6 {[%emt 0:04:25]} 28.
Qxc6 {[%emt 0:07:56]} bxc6 {[%emt 0:00:03]} 29. b4 {[%emt 0:00:31]} c5 {
[%emt 0:10:21]} 30. f3 {[%emt 0:01:12]} cxb4 {[%emt 0:04:04]} 31. fxe4 {
[%emt 0:00:34]} dxe4 {[%emt 0:00:03]} 32. Nd4 {[%emt 0:01:30]} g5 {[%emt 0:00:
00]} 33. Kf2 {[%emt 0:02:24]} gxh4 {[%emt 0:01:43]} 34. gxh4 {[%emt 0:00:08]}
Kf6 {[%emt 0:00:23]} 35. a5 {[%emt 0:00:54]} Kg6 {[%emt 0:06:43]} 36. Ke2 {
[%emt 0:00:36]} f6 {[%emt 0:00:58]} 37. Kd2 {[%emt 0:00:22]} f5 {[%emt 0:00:43]
} 38. Kc2 {[%emt 0:01:59]} Kf6 {[%emt 0:01:47]} 39. Kb3 {[%emt 0:00:21]} f4 {
[%emt 0:01:05]} 40. exf4 {[%emt 0:00:16]} 1-0